bitfinex-derivatives/quotes_ETHF0:USTF0_20250730
["timestamp","ask_amount","ask_price","bid_price","bid_amount"]
[1753895449359,42.7244,3799.1,3799.0,3.5192]
[1753895451064,43.25085,3799.1,3799.0,3.5192]
[1753895451266,43.25085,3799.1,3799.0,2.6728]
[1753895451660,43.25085,3799.1,3799.0,3.5192]
[1753895452068,0.9988,3799.0,3798.9,18.16]
[1753895452256,2.5125,3799.0,3798.9,18.16]
[1753895452456,0.4107,3798.8,3798.7,18.68449]
[1753895452766,2.5125,3798.8,3798.7,20.72779]
[1753895453172,2.5125,3798.8,3798.7,22.20369]
[1753895453459,2.5125,3798.8,3798.7,20.2013]
[1753895453666,40.8,3799.1,3798.6,0.52651]
[1753895453667,3.039,3798.7,3798.6,0.93991]
[1753895453866,3.039,3798.7,3798.6,19.09791]
[1753895454366,3.039,3798.7,3798.6,19.6253]
[1753895454567,2.5125,3798.7,3798.6,19.6253]
[1753895454867,2.5125,3798.7,3798.6,21.6772]
[1753895456564,3.2078,3798.9,3798.8,3.5192]
[1753895457165,40.8,3799.1,3799.0,3.5192]
[1753895457668,40.8,3799.1,3799.0,21.6752]
[1753895458266,5.7203,3799.4,3799.3,4.04562]
[1753895458860,3.6185,3799.4,3799.3,4.04562]
[1753895460072,4.1912,3799.4,3799.3,4.04562]
[1753895460464,0.6404,3799.2,3799.1,0.52644]
[1753895460665,2.434,3799.2,3799.1,0.4325]
[1753895460967,2.434,3799.2,3799.1,1.4477]
[1753895461169,2.434,3799.2,3799.1,2.0052]
[1753895461470,2.434,3799.2,3799.1,3.4381]
[1753895465772,2.434,3799.2,3799.1,21.5901]
[1753895467174,2.434,3799.2,3799.1,2.0052]
[1753895467371,2.0371,3798.9,3798.3,1.3164]
[1753895467569,2.434,3798.8,3798.7,0.959]
[1753895467769,2.434,3798.8,3798.7,20.1252]
[1753895467969,0.52647,3799.0,3798.9,0.52647]
[1753895468172,2.96047,3799.0,3798.9,3.4381]
[1753895468372,2.96047,3799.0,3798.9,1.4477]
[1753895468567,2.13647,3799.0,3798.9,2.6389]
[1753895468772,2.13647,3799.0,3798.9,3.4381]
[1753895469280,2.96047,3799.0,3798.9,3.4381]
[1753895470871,0.9696,3799.0,3798.9,3.4381]
[1753895471177,5.0014,3799.3,3799.2,3.96453]
[1753895471478,3.6047,3799.3,3799.2,3.96453]
[1753895471778,3.2078,3799.3,3799.2,3.96453]
[1753895473174,2.434,3799.5,3799.4,1.0839]
[1753895473380,2.434,3799.5,3799.4,3.9645]
[1753895473575,1.0373,3799.5,3799.4,3.9645]
[1753895473881,2.434,3799.5,3799.4,3.9645]
[1753895474178,40.8,3799.6,3799.4,1.9164]
[1753895474383,40.8,3799.6,3799.5,3.4381]
[1753895474583,1.61,3799.8,3799.7,1.39]
[1753895474783,0.7936819,3799.8,3799.7,3.4381]
[1753895474977,40.8,3799.8,3799.7,3.4381]
[1753895476579,0.2,3799.9,3799.8,1.08385]
[1753895476784,0.2,3799.9,3799.8,22.11145]
[1753895477282,41.0,3799.9,3799.8,22.11145]
[1753895477485,0.2,3799.9,3799.8,22.11145]
[1753895478989,1.31549,3801.0,3799.8,22.11145]
[1753895478990,3.2078,3800.9,3800.4,2.0481]
[1753895479194,3.2078,3800.9,3800.7,2.0237]
[1753895479195,3.75397564,3800.8,3800.7,2.0237]
[1753895479489,3.75397564,3800.8,3800.7,3.4381]
[1753895480084,3.75397564,3800.8,3800.7,2.6389]
[1753895480592,3.93112892,3800.8,3800.7,3.4381]
[1753895481296,3.75397564,3800.8,3800.7,3.4381]
[1753895481697,3.22776564,3800.8,3800.7,3.4381]
[1753895483200,3.22776564,3800.8,3800.7,22.10732]
[1753895483994,3.22776564,3800.8,3800.7,21.5811]
[1753895484197,1.76336564,3800.8,3800.7,21.5811]
[1753895484502,0.79376564,3800.8,3800.7,21.5811]
[1753895485185,44.0258,3801.3,3801.2,3.96425]
[1753895485386,44.81775254,3801.3,3801.2,22.10425]
[1753895486098,6.45175254,3801.3,3801.2,21.5781]
[1753895486300,3.24395254,3801.3,3801.2,21.5781]
[1753895487294,0.9696,3800.9,3800.8,1.39]
[1753895487599,0.52618,3801.0,3800.5,2.6389]
[1753895487794,0.52618,3801.1,3801.0,2.0814]
[1753895488196,0.52618,3801.1,3801.0,3.4381]
[1753895488401,0.018,3801.3,3801.1,1.91617]
[1753895488597,0.018,3801.3,3801.2,21.5866]
[1753895488802,3.19183059,3801.3,3801.2,21.5866]
[1753895489001,2.4001,3801.3,3801.2,21.5866]
[1753895490600,0.9986,3801.3,3801.2,21.5866]
[1753895490999,2.4001,3801.3,3801.2,21.5866]
[1753895491508,0.018,3801.3,3801.2,21.5866]
[1753895492102,0.018,3801.3,3801.2,24.7944]
[1753895492499,2.3864,3801.3,3801.2,21.5866]
[1753895493605,2.3684,3801.2,3801.1,3.3124]
[1753895493801,2.3684,3801.2,3801.1,21.97357]
[1753895494001,0.4079,3801.2,3801.1,19.98817]
[1753895494307,1.5818,3801.2,3801.1,19.98817]
[1753895494510,1.5818,3801.2,3801.1,21.97357]
[1753895494511,2.89455,3801.2,3801.1,21.97357]
[1753895495004,2.89455,3801.2,3801.1,21.4474]
[1753895495402,2.2797,3800.9,3800.8,1.327]
[1753895495705,2.3684,3800.7,3800.6,0.8018]
[1753895496003,2.3684,3800.7,3800.6,20.6572]
[1753895496305,2.3684,3800.7,3800.6,21.4454]
[1753895496500,1.49318,3800.4,3800.3,1.327]
[1753895496705,2.3684,3800.4,3800.3,21.4454]
[1753895499011,2.3684,3800.4,3800.3,1.327]
[1753895499207,2.3684,3800.4,3800.3,18.131]
[1753895499405,2.33566,3800.5,3800.4,1.1972]
[1753895499605,2.89466,3800.5,3800.4,3.3124]
[1753895500611,1.31567,3800.4,3799.9,3.2078]
[1753895500812,2.89472,3800.0,3799.9,21.4434]
[1753895502416,2.3684,3800.0,3799.9,21.4434]
[1753895502912,0.9342,3800.2,3800.1,3.3124]
[1753895503114,2.8947,3800.2,3800.1,21.4434]
[1753895503412,2.3684,3800.2,3800.1,21.4434]
[1753895503610,1.5818,3800.2,3800.1,21.4434]
[1753895503806,2.3684,3800.2,3800.1,21.4434]
[1753895504811,2.3684,3800.2,3800.1,18.9328]
[1753895505015,2.3684,3800.2,3800.1,19.5338]
[1753895505211,2.3684,3800.2,3800.1,20.059]
[1753895505419,2.3684,3800.2,3800.1,21.4434]
[1753895507014,1.92766,3801.2,3800.6,0.601]
[1753895507210,2.3684,3801.2,3801.1,3.3124]
[1753895507415,2.3684,3801.2,3801.1,21.4434]
[1753895508616,0.9669,3800.9,3800.8,1.8532]
[1753895508820,0.9669,3800.5,3800.4,5.1358]
[1753895509121,2.3684,3800.5,3800.4,18.5203]
[1753895509318,2.3684,3800.5,3800.4,20.058]
[1753895509518,2.3684,3800.5,3800.4,21.4424]
[1753895509722,2.3684,3800.5,3800.4,20.058]
[1753895509918,2.3684,3800.5,3800.4,21.4424]
[1753895510717,2.3684,3800.5,3800.4,20.058]
[1753895510921,2.3684,3800.5,3800.4,19.5328]
[1753895511321,0.559,3799.9,3799.8,3.42725]
[1753895511628,0.9669,3799.9,3799.8,21.96875]
[1753895511924,0.4079,3799.9,3799.8,21.96875]
[1753895512322,2.3684,3800.2,3800.1,3.05051]
[1753895512624,0.4079,3800.2,3800.1,21.96771]
[1753895513519,1.70016,3800.5,3800.4,0.91657]
[1753895513822,2.89466,3800.5,3800.4,21.96767]
[1753895515322,2.3684,3800.5,3800.4,21.96767]
[1753895515721,2.3684,3800.8,3800.7,1.85322]
[1753895515915,2.3684,3801.0,3800.9,3.83859]
[1753895516118,2.3684,3801.0,3800.9,21.96659]
[1753895516519,2.3684,3801.0,3800.9,3.83859]
[1753895516823,2.3684,3801.0,3800.9,21.96659]
[1753895517416,1.49315,3800.6,3800.0,0.5962]
[1753895517722,2.3684,3800.5,3800.4,0.3903]
[1753895517923,43.1684,3800.5,3800.4,0.3903]
[1753895518118,43.1684,3800.5,3800.4,0.8018]
[1753895518317,43.1684,3800.5,3800.4,1.4028]
[1753895518724,43.1684,3800.5,3800.4,1.928]
[1753895520214,43.1684,3800.5,3800.4,3.347]
[1753895521525,0.9669,3800.5,3800.4,3.347]
[1753895521826,3.2078,3800.6,3800.5,3.94375]
[1753895523120,0.52619,3801.0,3800.5,0.52625]
[1753895523324,2.4317,3800.6,3800.5,2.8213]
[1753895523724,2.4317,3800.6,3800.5,3.4175]
[1753895523925,1.5717,3800.6,3800.5,6.6253]
[1753895524327,1.5717,3800.6,3800.5,3.4175]
[1753895524532,2.4317,3800.6,3800.0,3.73412]
[1753895524831,0.9387,3800.1,3800.0,2.8213]
[1753895525125,0.633,3800.5,3800.4,0.4228]
[1753895525322,2.4317,3800.5,3800.4,2.8213]
[1753895525521,0.9387,3800.5,3800.2,0.6402]
[1753895525825,3.2078,3801.0,3800.6,0.52623]
[1753895526031,1.2821,3801.3,3801.2,2.1811]
[1753895526225,0.80913692,3801.3,3801.2,2.5947]
[1753895526525,0.018,3801.3,3801.2,3.4175]
[1753895527525,2.4497,3801.3,3801.2,3.4175]
[1753895527728,0.5526,3801.3,3801.2,3.4175]
[1753895527927,0.018,3801.3,3801.2,3.4175]
[1753895528129,0.4221,3801.3,3801.2,3.4175]
[1753895529033,0.4221,3801.3,3801.2,1.4755]
[1753895529034,2.4497,3801.3,3801.2,1.4755]
[1753895529829,0.52615,3801.2,3801.1,18.127]
[1753895530028,0.4041,3801.0,3800.9,0.4125]
[1753895530226,0.9387,3800.8,3800.7,1.9985]
[1753895530426,2.4317,3800.8,3800.7,1.9985]
[1753895530926,1.493,3800.5,3800.2,0.6402]
[1753895531134,1.5717,3800.4,3800.3,18.5478]
[1753895531435,2.4317,3800.4,3800.3,19.07407]
[1753895532032,2.4317,3800.4,3800.3,20.64977]
[1753895532433,2.4317,3800.4,3800.3,18.125]
[1753895533231,2.4317,3800.4,3800.3,18.5478]
[1753895533436,43.2317,3800.4,3800.3,20.1235]
[1753895533733,5.227,3800.9,3800.6,0.52623]
[1753895534032,1.5717,3800.7,3800.6,3.30353]
[1753895534238,0.9387,3800.7,3800.6,3.30353]
[1753895534540,0.9387,3800.7,3800.6,3.94373]
[1753895535139,2.4317,3800.7,3800.6,3.94373]
[1753895538437,2.4317,3800.7,3800.6,0.52624]
[1753895538939,2.4317,3800.5,3800.4,18.65026]
[1753895539543,2.4317,3800.5,3800.4,20.00856]
[1753895539743,2.4317,3800.5,3800.4,21.47156]
[1753895539943,2.4317,3800.5,3800.4,22.06776]
[1753895540841,2.4317,3800.5,3800.4,20.64876]
[1753895541642,2.4317,3800.5,3800.4,18.5458]
[1753895542443,2.4317,3800.5,3800.4,18.123]
[1753895543353,0.52625,3800.6,3800.4,18.123]
[1753895543543,1.1676,3800.6,3800.5,3.94375]
[1753895543751,1.5717,3800.6,3800.5,3.94375]
[1753895544051,2.4317,3800.6,3800.5,3.94375]
[1753895545749,2.4317,3800.6,3800.5,3.93848192]
[1753895546448,2.4317,3800.9,3800.8,3.30351]
[1753895546649,44.0078,3801.0,3800.8,1.88451]
[1753895546952,45.5008,3801.0,3800.9,3.4175]
[1753895547456,3.2078,3801.0,3800.9,3.4175]
[1753895547650,2.4497,3801.3,3801.2,3.94365]
[1753895547953,43.2497,3801.3,3801.2,3.94365]
[1753895548855,0.52615,3801.2,3801.0,18.123]
[1753895549151,40.818,3801.3,3800.6,1.2247]
[1753895549354,2.3292,3800.3,3800.2,5.16799]
[1753895549552,2.3292,3800.3,3800.2,0.92949]
[1753895549854,2.3292,3800.3,3799.5,0.52639]
[1753895549855,1.45885,3799.8,3799.5,0.52639]
[1753895550055,1.3967,3799.4,3799.2,0.52642]
[1753895550249,5.537,3799.6,3799.5,3.30689]
[1753895550456,0.3912,3799.6,3799.5,3.89789]
[1753895550753,43.1292,3799.6,3799.5,3.89789]
[1753895552455,0.9325,3799.6,3799.5,3.89789]
[1753895552650,3.2078,3799.8,3799.7,3.89786]
[1753895552857,5.537,3800.3,3800.2,3.89779]
[1753895553160,46.337,3800.3,3800.2,3.3715]
[1753895554260,44.0078,3800.3,3800.2,3.3715]
[1753895554660,45.4045,3800.3,3800.2,3.3715]
[1753895554861,0.9325,3799.9,3799.8,18.64935]
[1753895555056,2.3292,3799.9,3799.8,18.64935]
[1753895555560,2.3292,3799.9,3799.8,20.08325]
[1753895555759,2.3292,3799.9,3799.8,20.63635]
[1753895556158,2.3292,3799.9,3799.8,21.22735]
[1753895556354,2.3292,3799.9,3799.8,22.02085]
[1753895556563,2.3292,3799.9,3799.8,21.22735]
[1753895556763,2.3292,3799.9,3799.8,22.02085]
[1753895557556,0.9697,3800.2,3800.1,2.86091]
[1753895557761,44.0078,3800.3,3800.1,3.89781]
[1753895558060,44.5863,3800.3,3800.2,3.3715]
[1753895558360,45.4045,3800.3,3800.2,3.3715]
[1753895559164,45.4045,3800.3,3800.2,2.7805]
[1753895559663,45.4045,3800.3,3800.2,3.3715]
[1753895564369,44.0078,3800.3,3800.2,3.3715]
[1753895564570,3.2078,3800.3,3800.2,3.3715]
[1753895565974,4.1403,3800.3,3800.2,3.3715]
[1753895566174,5.537,3800.3,3800.2,3.3715]
[1753895566673,5.537,3800.3,3800.2,20.67419]
[1753895566874,4.9585,3800.3,3800.2,21.22729]
[1753895567075,5.537,3800.3,3800.2,22.02079]
[1753895568170,5.537,3800.3,3800.2,18.64929]
[1753895568569,5.537,3800.3,3800.2,22.02079]
[1753895568770,4.1403,3800.3,3800.2,22.02079]
[1753895568974,4.66652,3800.8,3800.7,1.47632]
[1753895569272,6.06322,3800.8,3800.7,3.3715]
[1753895569869,2.3292,3800.1,3800.0,3.3715]
[1753895570067,2.85551,3800.1,3800.0,18.5252]
[1753895570472,43.65551,3800.1,3800.0,18.5252]
[1753895571069,43.65551,3800.1,3800.0,18.122]
[1753895571378,2.27705,3799.9,3799.8,18.122]
[1753895571876,2.85555,3799.9,3799.8,18.122]
[1753895572076,2.85555,3799.9,3799.8,18.5252]
[1753895572975,2.85555,3799.9,3799.8,19.1589]
[1753895573279,2.85555,3799.9,3799.8,19.5559]
[1753895573478,2.3292,3799.9,3799.8,19.5559]
[1753895573977,2.3292,3799.9,3799.8,20.109]
[1753895574873,2.3292,3799.9,3799.8,21.4935]
[1753895578071,0.3912,3799.5,3799.4,0.52639]
[1753895578378,2.3292,3799.5,3799.4,3.89789]
[1753895578580,0.9325,3799.5,3799.4,3.89789]
[1753895578779,2.3013,3799.5,3799.4,3.89789]
[1753895579880,2.3013,3799.5,3799.3,19.05571]
[1753895580178,18.122,3800.0,3798.8,2.43678]
[1753895580179,2.2959,3798.9,3798.8,2.43678]
[1753895580369,2.2959,3798.9,3798.8,21.91718]
[1753895582270,2.2959,3798.9,3798.8,19.4373]
[1753895582475,2.2959,3798.9,3798.8,18.122]
[1753895582977,1.7173,3798.7,3798.6,20.55881]
[1753895583175,2.2959,3798.7,3798.6,18.122]
[1753895583380,2.2959,3798.7,3798.6,20.0323]
[1753895583581,2.2959,3798.7,3798.6,3.2687]
[1753895583783,2.2959,3798.7,3798.6,21.3907]
[1753895583986,2.2959,3798.7,3798.6,20.626]
[1753895584280,2.2959,3798.7,3798.6,20.0323]
[1753895584680,2.2959,3798.7,3798.6,21.3907]
[1753895585982,43.0959,3798.7,3798.6,21.3907]
[1753895586781,41.7271,3798.7,3798.6,21.3907]
[1753895588483,41.7271,3798.7,3798.6,3.2687]
[1753895588687,41.7271,3798.7,3798.6,21.3927]
[1753895588992,43.0959,3798.7,3798.6,21.3927]
[1753895591887,43.0959,3798.7,3798.6,1.0023]
[1753895592086,1.45361,3798.6,3798.5,18.5313]
[1753895592289,2.82241,3798.6,3798.5,18.5313]
[1753895592487,2.2959,3798.6,3798.5,18.5313]
[1753895592690,2.2959,3798.6,3798.5,19.5276]
[1753895593691,2.2959,3798.6,3798.5,20.0343]
[1753895593881,2.2959,3798.6,3798.5,21.3927]
[1753895594487,2.2959,3798.6,3798.5,18.124]
[1753895595590,2.2959,3798.6,3798.5,19.1263]
[1753895596193,2.2959,3798.6,3798.5,19.5276]
[1753895597598,5.5037,3798.6,3798.5,19.5276]
[1753895598811,1.31633,3798.5,3798.1,0.52658]
[1753895599019,1.45368,3798.2,3798.1,3.2687]
[1753895599205,1.45368,3798.2,3798.1,21.3927]
[1753895599703,2.82248,3798.2,3798.1,21.3927]
[1753895600399,2.2959,3798.2,3798.1,21.3927]
[1753895600608,0.7902,3798.4,3798.3,0.8086]
[1753895600907,1.45364,3798.5,3798.4,1.84184]
[1753895601109,2.82244,3798.5,3798.4,3.79524]
[1753895601314,2.82244,3798.5,3798.4,3.2687]
[1753895601802,3.2078,3798.6,3798.5,3.79523]
[1753895602003,5.5037,3798.6,3798.5,3.2687]
[1753895602704,5.5037,3798.6,3798.5,20.8]
[1753895602915,5.5037,3798.6,3798.5,19.4403]
[1753895603109,5.89291,3798.6,3798.2,18.125]
[1753895603309,2.2959,3798.3,3798.2,19.5286]
[1753895603504,2.82246,3798.3,3798.2,20.8]
[1753895603814,2.2959,3798.3,3798.2,21.3937]
[1753895605512,3.2078,3798.6,3798.5,1.3153]
[1753895605705,3.2078,3798.6,3798.5,3.2687]
[1753895606406,4.1349,3798.6,3798.5,3.2687]
[1753895607013,4.7135,3798.6,3798.5,3.2687]
[1753895607607,5.5037,3798.6,3798.5,3.2687]
[1753895612306,5.5037,3798.6,3798.4,18.125]
[1753895612307,1.40573,3798.5,3798.4,18.125]
[1753895612507,2.71006,3798.3,3798.2,0.37]
[1753895612819,2.1835,3797.9,3797.8,0.19484708]
[1753895613020,2.1835,3797.9,3797.8,2.86194708]
[1753895613415,3.73438,3798.2,3798.1,0.5991]
[1753895613719,3.73438,3798.2,3798.1,3.2662]
[1753895613916,4.12218,3798.2,3798.1,3.2662]
[1753895614212,1.08352,3798.6,3798.5,1.9635]
[1753895614419,1.47132,3798.6,3798.5,3.2662]
[1753895614622,2.71002,3798.6,3798.5,3.2662]
[1753895614919,3.50639236,3798.6,3798.5,0.37]
[1753895615118,44.0078,3798.7,3798.3,21.3902]
[1753895615119,2.71004,3798.4,3798.3,21.3902]
[1753895615511,45.3121,3798.7,3798.6,3.2662]
[1753895615808,46.1084851,3798.7,3798.6,3.2662]
[1753895616218,45.3121,3798.7,3798.6,3.2662]
[1753895617613,45.3121,3798.7,3798.6,0.7569]
[1753895617814,2.71004,3798.4,3798.3,18.8809]
[1753895618018,2.71004,3798.4,3798.3,19.48]
[1753895618221,2.71004,3798.4,3798.3,0.9691]
[1753895619114,2.71004,3798.4,3798.3,3.2662]
[1753895619518,0.52653,3798.5,3798.4,3.2662]
[1753895619718,0.91433,3798.5,3798.4,3.2662]
[1753895620114,0.5266,3798.0,3797.9,0.9158]
[1753895620315,2.7101,3798.0,3797.9,21.3892]
[1753895620520,2.7101,3798.0,3797.9,1.9018]
[1753895621118,2.1835,3797.9,3797.8,1.16394708]
[1753895621318,5.3913,3797.9,3797.8,3.46104708]
[1753895622225,5.3913,3797.9,3797.8,2.09664708]
[1753895622522,5.3913,3797.9,3797.8,0.19484708]
[1753895623514,46.1913,3797.9,3797.8,0.19484708]
[1753895623723,46.98665337,3797.9,3797.8,0.19484708]
[1753895624418,0.8792,3797.1,3797.0,0.5991]
[1753895624619,0.8792,3797.1,3797.0,3.2662]
[1753895624620,2.1835,3797.1,3797.0,3.2662]
[1753895624823,0.91453,3797.1,3797.0,3.2662]
[1753895625022,3.2078,3797.4,3796.7,3.2662]
[1753895625216,3.2078,3797.4,3797.0,1.8924]
[1753895625217,1.40593,3797.1,3797.0,1.8924]
[1753895625420,0.8792,3797.1,3797.0,3.2662]
[1753895625618,41.1878,3797.1,3797.0,3.2662]
[1753895626024,40.8,3797.1,3797.0,3.2662]
[1753895627626,40.8,3797.1,3797.0,21.3892]
[1753895629226,0.52668,3797.5,3797.1,0.52672]
[1753895629426,2.15318,3797.5,3797.4,3.2662]
[1753895629929,43.51018,3797.5,3797.4,3.2662]
[1753895630930,42.9835,3797.5,3797.4,3.2662]
[1753895632640,42.9835,3797.5,3797.4,2.4915]
[1753895633028,42.9835,3797.5,3797.4,1.9018]
[1753895633228,42.9835,3797.5,3797.4,3.2662]
[1753895633431,41.6792,3797.5,3797.4,3.2662]
[1753895633632,40.8,3797.5,3797.4,3.2662]
[1753895634028,3.2078,3797.8,3797.7,3.2662]
[1753895634235,3.2078,3797.8,3797.7,3.79284]
[1753895634639,3.5956,3797.8,3797.7,3.79284]
[1753895635335,5.3913,3797.8,3797.7,3.79284]
[1753895641741,3.2078,3797.8,3797.7,3.79284]
[1753895641950,3.2078,3798.5,3798.4,2.43194]
[1753895642238,3.2078,3798.5,3798.4,3.74914]
[1753895642647,5.4616,3798.5,3798.4,3.2226]
[1753895642946,5.4616,3798.5,3798.4,0.4003]
[1753895643346,0.9012,3798.3,3798.2,18.122]
[1753895643549,2.78037,3798.3,3798.0,2.27929]
[1753895643744,2.2538,3798.2,3798.1,0.52657]
[1753895643950,0.9012,3798.0,3797.9,1.4958]
[1753895644246,2.2538,3798.0,3797.9,1.4958]
[1753895644543,1.3526,3797.9,3797.8,0.52662]
[1753895644748,2.2538,3797.9,3797.8,0.52662]
[1753895645047,2.2538,3797.9,3797.8,2.41742]
[1753895645244,2.2538,3797.9,3797.8,1.8908]
[1753895645551,2.2538,3797.9,3797.8,3.2226]
[1753895646952,2.2538,3797.8,3797.7,0.52663]
[1753895647645,2.2538,3797.8,3797.7,1.49583]
[1753895648041,2.2538,3797.8,3797.6,18.121]
[1753895648042,2.2538,3797.8,3797.6,0.52664]
[1753895648247,3.2078,3797.7,3797.5,18.12]
[1753895648448,1.42786,3797.6,3797.4,1.49587]
[1753895648750,0.3876,3797.1,3797.0,2.6889]
[1753895648949,2.2538,3797.1,3797.0,3.74934]
[1753895649254,2.2538,3797.1,3797.0,0.52674]
[1753895649453,2.2538,3797.1,3797.0,0.92704]
[1753895649652,2.2538,3797.1,3797.0,2.41754]
[1753895649854,2.2538,3797.1,3797.0,3.74934]
[1753895650253,43.0538,3797.1,3797.0,3.74934]
[1753895650853,40.8,3797.1,3797.0,3.74934]
[1753895651350,42.1526,3797.1,3797.0,3.74934]
[1753895659555,0.9012,3796.7,3796.6,20.0108]
[1753895659760,2.2538,3796.7,3796.6,21.86939]
[1753895662958,1.3526,3797.0,3796.9,0.52675]
[1753895663161,2.2538,3797.0,3796.9,3.74935]
[1753895666661,2.2538,3797.0,3796.9,2.96585]
[1753895666861,2.2538,3797.0,3796.9,3.74935]
[1753895667763,0.3876,3797.0,3796.9,3.74935]
[1753895667958,40.8,3797.1,3797.0,3.2226]
[1753895668566,42.1526,3797.1,3797.0,3.2226]
[1753895673860,42.1191,3797.1,3797.0,3.2226]
[1753895674263,18.118,3797.5,3797.4,0.3714]
[1753895674467,3.9728,3797.6,3797.4,2.35078]
[1753895674468,3.2078,3797.6,3797.4,2.35078]
[1753895674669,3.2078,3797.6,3797.5,3.1543]
[1753895675167,3.5933,3798.5,3798.4,2.31914]
[1753895675361,4.00418027,3798.5,3798.4,3.68084]
[1753895675556,4.94378027,3798.5,3798.4,3.68084]
[1753895675758,6.23618027,3798.5,3798.4,3.68084]
[1753895677169,4.38968027,3798.5,3798.4,3.68084]
[1753895677360,5.47118027,3798.5,3798.4,3.68084]
[1753895677566,6.23618027,3798.5,3798.4,3.68084]
[1753895677766,3.02838027,3798.5,3798.4,3.68084]
[1753895678766,2.232,3798.5,3798.4,3.68084]
[1753895679171,0.9129,3798.5,3798.4,3.68084]
[1753895680373,2.232,3798.5,3798.4,3.68084]
[1753895681469,0.9396,3798.5,3798.4,3.68084]
[1753895681673,2.232,3798.8,3798.7,3.6808]
[1753895683277,2.232,3798.8,3798.7,3.1543]
[1753895684172,0.9129,3798.6,3798.5,0.52652]
[1753895684373,2.232,3798.6,3798.5,0.52652]
[1753895684575,2.232,3798.6,3798.5,1.07512]
[1753895684773,2.232,3798.6,3798.5,1.44652]
[1753895684974,2.232,3798.6,3798.5,3.68082]
[1753895688979,2.232,3798.6,3798.5,1.7926]
[1753895689577,1.3191,3798.5,3798.4,0.52653]
[1753895689778,2.232,3798.5,3798.4,0.52653]
[1753895690086,2.232,3798.5,3798.4,1.83353]
[1753895690280,2.232,3798.5,3798.4,3.68083]
[1753895690672,0.9129,3798.2,3798.1,22.22378]
[1753895690878,2.232,3798.2,3798.1,0.52658]
[1753895691280,2.75855,3798.4,3798.3,3.68085]
[1753895692083,2.232,3798.4,3798.3,3.68085]
[1753895692474,2.232,3798.4,3798.3,3.1543]
[1753895692979,2.232,3798.4,3798.3,2.5742]
[1753895693278,0.52658,3798.2,3798.0,0.52659]
[1753895693475,1.43948,3798.2,3798.1,0.7584]
[1753895693678,1.43948,3798.2,3798.1,1.307]
[1753895693884,1.43948,3798.2,3798.0,0.52659]
[1753895694182,2.232,3798.1,3798.0,0.52659]
[1753895694384,1.43949,3798.1,3797.9,19.006]
[1753895694580,2.232,3798.0,3797.9,18.108]
[1753895694781,0.3855,3797.7,3797.6,0.3714]
[1753895694982,0.9129,3797.6,3797.5,0.52666]
[1753895695286,43.032,3797.6,3797.5,0.89806]
[1753895695479,40.8,3797.6,3797.5,3.68096]
[1753895695786,40.8,3797.6,3797.5,6.88876]
[1753895696083,4.5269,3798.1,3798.0,2.0256]
[1753895696084,5.4398,3798.1,3798.0,2.0256]
[1753895696278,5.4398,3798.1,3798.0,3.1543]
[1753895696480,46.2398,3798.1,3798.0,3.1543]
[1753895696878,43.032,3798.1,3798.0,3.1543]
[1753895701685,46.2398,3798.1,3798.0,3.1543]
[1753895701979,0.8568,3797.6,3797.5,1.38907]
[1753895702183,0.8568,3797.6,3797.5,3.05967]
[1753895702582,0.8568,3797.6,3797.5,3.60647]
[1753895702788,2.1701,3797.6,3797.5,3.60647]
[1753895705585,2.1701,3797.6,3797.5,0.3654]
[1753895705890,2.1701,3797.6,3797.5,0.9122]
[1753895706792,2.1701,3797.6,3797.5,1.7746]
[1753895706988,1.6241,3797.9,3797.8,1.75442]
[1753895707188,2.1701,3797.9,3797.8,3.60642]
[1753895707481,45.3211,3798.1,3798.0,3.6064]
[1753895709893,45.3211,3798.1,3797.5,3.2078]
[1753895709894,1.3133,3797.9,3797.5,3.9579]
[1753895710087,2.1701,3797.6,3797.5,3.05967]
[1753895710488,2.1701,3797.6,3797.5,3.60647]
[1753895711992,2.1701,3797.9,3797.8,0.89202]
[1753895712298,2.1701,3797.9,3797.8,3.60642]
[1753895712495,3.2078,3798.1,3798.0,2.8563]
[1753895712795,3.5697,3798.1,3798.0,3.6064]
[1753895713388,5.3779,3798.1,3798.0,3.6064]
[1753895717196,5.3779,3798.1,3798.0,3.0798]
[1753895717698,0.4949,3797.9,3797.8,0.52661]
[1753895717901,0.4949,3797.9,3797.8,1.07341]
[1753895717902,2.1701,3797.9,3797.8,1.07341]
[1753895718098,2.1701,3797.9,3797.8,1.82751]
[1753895718398,2.1701,3797.9,3797.8,3.60641]
[1753895718995,2.1701,3797.9,3797.8,3.0798]
[1753895719599,2.1701,3797.8,3797.7,2.30123]
[1753895719798,2.1701,3797.8,3797.7,3.60643]
[1753895722596,3.73439,3798.1,3797.7,3.60643]
[1753895722802,5.90449,3798.1,3798.0,3.0798]
[1753895724603,5.3779,3798.1,3798.0,3.0798]
[1753895727416,3.5697,3798.1,3798.0,3.0798]
[1753895727612,4.1157,3798.8,3798.7,1.7543]
[1753895727812,4.56120005,3798.8,3798.7,3.6063]
[1753895728115,46.97791934,3798.8,3798.7,3.0798]
[1753895728904,46.97791934,3798.8,3798.7,1.856]
[1753895729109,46.97791934,3798.8,3797.9,21.3048]
[1753895729110,46.97791934,3798.8,3797.9,3.2078]